bitfinex/quotes_SOLUSD_20241122
["timestamp","ask_amount","ask_price","bid_price","bid_amount"]
[1732283405630,34.44965339,256.17,256.16,27.47872406]
[1732283405793,64.99570678,256.17,256.13,77.88567378]
[1732283405998,61.09210678,256.14,256.12,60.37577684]
[1732283406206,20.0,256.13,256.12,11.62371786]
[1732283406412,20.0,256.13,256.05,119.05955898]
[1732283406413,0.09367462,256.12,256.05,119.05955898]
[1732283406617,111.73183479,256.06,256.05,113.31005898]
[1732283406920,0.09367462,256.04,255.72,19.90664228]
[1732283407097,43.87055862,255.99,255.69,152.71236668]
[1732283407294,91.03145062,255.99,255.69,152.71236668]
[1732283407522,200.46681318,255.99,255.98,118.6199764]
[1732283407709,236.08815955,255.99,255.98,118.6199764]
[1732283407908,43.776884,255.98,255.6,2.5]
[1732283408227,30.54605339,255.75,255.6,2.5]
[1732283408406,30.54605339,255.73,255.61,2.5]
[1732283408606,35.62134635,255.72,255.61,2.5]
[1732283408804,30.54605339,255.67,255.58,43.3446]
[1732283409002,57.37168279,255.6,255.58,43.3446]
[1732283409224,35.62134635,255.59,255.58,11.84212887]
[1732283409429,57.37168279,255.6,255.58,11.84212887]
[1732283409600,57.37168279,255.6,255.59,2.5]
[1732283410208,68.84738763,255.69,255.67,2.5]
[1732283410511,68.84738763,255.69,255.68,26.276884]
[1732283410906,30.54605339,255.78,255.59,20.0]
[1732283411105,30.54605339,255.78,255.55,2.5]
[1732283411500,30.54605339,255.8,255.54,2.5]
[1732283411726,30.54605339,255.8,255.52,25.0]
[1732283412100,30.54605339,255.83,255.56,2.5]
[1732283412311,30.54605339,255.83,255.55,20.0]
[1732283412618,30.54605339,255.81,255.55,20.0]
[1732283412804,30.54605339,255.81,255.56,23.776884]
[1732283413006,2.5,255.77,255.59,20.0]
[1732283413306,2.5,255.73,255.59,20.0]
[1732283413499,57.92668043,255.72,255.54,12.5997]
[1732283413732,35.27152391,255.71,255.54,12.5997]
[1732283413911,3.79264656,255.61,255.54,12.5997]
[1732283414424,22.83459543,255.65,255.54,12.5997]
[1732283414724,22.83459543,255.66,255.54,12.5997]
[1732283415224,26.276884,255.74,255.55,23.776884]
[1732283415428,2.5,255.74,255.58,2.5]
[1732283415726,2.5,255.77,255.54,11.77025518]
[1732283415912,2.5,255.75,255.54,11.77025518]
[1732283416110,23.776884,255.76,255.55,20.58669396]
[1732283416408,5.0,255.75,255.55,20.58669396]
[1732283416623,5.0,255.75,255.55,20.0]
[1732283417119,2.5,255.73,255.55,20.0]
[1732283417629,23.776884,255.73,255.55,20.0]
[1732283417814,23.776884,255.68,255.54,11.77025518]
[1732283418018,23.776884,255.66,255.54,11.77025518]
[1732283418212,23.776884,255.64,255.54,11.77025518]
[1732283418745,23.776884,255.62,255.54,11.77025518]
[1732283419228,23.776884,255.64,255.54,11.77025518]
[1732283419939,2.5,255.7,255.55,20.0]
[1732283420227,2.5,255.66,255.54,11.77025518]
[1732283421019,5.0,255.69,255.54,11.77025518]
[1732283421223,2.5,255.7,255.54,11.77025518]
[1732283421535,2.5,255.72,255.54,11.77025518]
[1732283421718,2.5,255.71,255.54,15.82085188]
[1732283421923,2.5,255.71,255.55,20.0]
[1732283422618,2.5,255.7,255.55,20.0]
[1732283423212,2.5,255.7,255.54,11.77025518]
[1732283423413,2.5,255.69,255.54,11.77025518]
[1732283423632,23.776884,255.68,255.54,11.77025518]
[1732283424636,26.276884,255.65,255.55,20.0]
[1732283424829,2.5,255.69,255.55,20.0]
[1732283425033,23.776884,255.68,255.55,20.0]
[1732283425343,56.90685808,255.68,255.55,20.0]
[1732283425715,26.276884,255.68,255.55,20.0]
[1732283425920,2.5,255.67,255.55,20.0]
[1732283426236,23.776884,255.66,255.55,20.0]
[1732283426717,2.5,255.7,255.55,20.0]
[1732283427837,2.5,255.68,255.55,20.0]
[1732283428047,23.776884,255.69,255.55,20.0]
[1732283428543,23.776884,255.7,255.55,20.0]
[1732283428742,3.9088,255.83,255.55,20.0]
[1732283428743,15.619636,255.89,255.88,2.5]
[1732283428948,19.89953122,256.34,255.56,43.1807]
[1732283428949,2.5,255.93,255.76,38.98909018]
[1732283429240,18.8463397,255.9,255.77,20.0]
[1732283429416,2.5,255.81,255.77,20.0]
[1732283429619,2.5,255.79,255.76,38.98909018]
[1732283429932,2.5,255.77,255.76,38.98909018]
[1732283430516,26.276884,255.77,255.76,38.98909018]
[1732283431336,65.1232237,255.77,255.76,38.98909018]
[1732283431537,65.1232237,255.77,255.48,12.3982]
[1732283431538,23.776884,255.58,255.48,12.3982]
[1732283431724,2.5,255.52,255.43,15.625383]
[1732283431930,23.776884,255.51,255.37,13.1474]
[1732283432137,26.276884,255.51,255.37,13.1474]
[1732283432643,18.8463397,255.55,255.37,13.1474]
[1732283432644,23.776884,255.48,255.37,13.1474]
[1732283433023,23.776884,255.5,255.38,20.0]
[1732283433225,23.776884,255.5,255.37,13.1474]
[1732283433749,2.5,255.51,255.37,13.1474]
[1732283434040,2.5,255.51,254.48,46.56037309]
[1732283434041,2.5,255.32,255.24,12.0718]
[1732283434341,2.5,255.37,255.24,12.0718]
[1732283434746,2.5,255.4,255.24,12.0718]
[1732283434934,2.5,255.37,255.24,12.0718]
[1732283435124,2.5,255.36,255.24,12.0718]
[1732283435643,30.66503695,255.44,255.24,12.0718]
[1732283435644,33.16503695,255.44,255.25,0.58748045]
[1732283435830,2.5,255.33,255.24,12.0718]
[1732283436028,2.5,255.28,255.24,12.0718]
[1732283436239,2.5,255.3,255.24,12.0718]
[1732283436629,2.5,255.34,255.24,12.0718]
[1732283436830,2.5,255.31,255.24,12.0718]
[1732283437336,2.5,255.28,255.13,16.9368284]
[1732283437524,2.5,255.24,255.13,12.9351]
[1732283437843,2.5,255.32,255.13,12.9351]
[1732283438048,2.5,255.36,255.17,2.5]
[1732283438344,2.5,255.43,255.23,2.5]
[1732283438750,2.5,255.43,255.25,2.5]
[1732283439129,2.5,255.43,255.26,23.776884]
[1732283439336,30.66503695,255.49,255.27,20.0]
[1732283439540,33.16503695,255.5,255.31,20.0]
[1732283439744,33.16503695,255.5,255.29,20.0]
[1732283440135,2.5,255.5,255.33,20.0]
[1732283440747,2.5,255.53,255.35,20.0]
[1732283440951,2.5,255.57,255.37,12.5352]
[1732283441253,2.5,255.57,255.39,20.0]
[1732283441626,47.9463,255.73,255.38,20.0]
[1732283441627,2.5,255.46,255.38,20.0]
[1732283441828,2.5,255.45,255.38,20.0]
[1732283442027,30.66503695,255.54,255.38,20.0]
[1732283442346,2.5,255.52,255.38,20.0]
[1732283442551,2.5,255.5,255.38,20.0]
[1732283443460,2.5,255.42,255.27,12.7623]
[1732283443953,2.5,255.41,255.27,12.7623]
[1732283444144,2.5,255.42,255.27,12.7623]
[1732283444343,23.776884,255.51,255.27,12.7623]
[1732283444344,2.5,255.38,255.27,12.7623]
[1732283444550,23.776884,255.51,255.27,12.7623]
[1732283444551,2.5,255.34,255.27,12.7623]
[1732283444948,2.5,255.32,255.13,13.42143865]
[1732283445133,2.5,255.27,255.13,12.8339]
[1732283445333,2.5,255.31,255.13,12.8339]
[1732283445672,2.5,255.39,255.14,3.08760988]
[1732283445849,2.5,255.34,255.16,2.5]
[1732283446042,2.5,255.34,255.13,12.8339]
[1732283446242,37.1237,255.48,255.13,15.3339]
[1732283446243,2.5,255.33,255.13,15.3339]
[1732283446445,2.5,255.31,255.13,12.8339]
[1732283446645,2.5,255.33,255.13,12.8339]
[1732283446952,2.5,255.29,255.13,12.8339]
[1732283447156,2.5,255.26,255.13,12.8339]
[1732283447453,2.5,255.43,255.13,12.8339]
[1732283447454,2.5,255.22,255.13,12.8339]
[1732283447631,2.5,255.2,255.13,12.8339]
[1732283448049,2.5,255.28,255.13,12.8339]
[1732283448253,2.5,255.25,255.13,12.8339]
[1732283448755,2.5,255.23,255.13,12.8339]
[1732283449158,2.5,255.2,255.13,12.8339]
[1732283450666,2.5,255.2,255.14,20.0]
[1732283451856,2.5,255.32,255.15,23.776884]
[1732283452062,2.5,255.32,255.18,20.0]
[1732283452365,2.5,255.34,255.18,20.0]
[1732283452735,2.5,255.34,255.15,23.776884]
[1732283452940,2.5,255.34,255.16,20.0]
[1732283453258,2.5,255.33,255.18,20.0]
[1732283453458,2.5,255.28,255.18,20.0]
[1732283453664,2.5,255.28,255.16,20.0]
[1732283453844,2.5,255.35,255.18,20.0]
[1732283454044,2.5,255.3,255.18,20.0]
[1732283454458,2.5,255.28,255.18,20.0]
[1732283454665,30.66503695,255.35,255.18,20.0]
[1732283454962,2.5,255.32,255.18,20.0]
[1732283455149,2.5,255.32,255.15,3.93547283]
[1732283455356,2.5,255.32,255.17,20.0]
[1732283455544,2.5,255.36,255.18,23.776884]
[1732283455746,33.2095,255.48,255.2,23.776884]
[1732283455747,2.5,255.34,255.2,23.776884]
[1732283455944,2.5,255.34,255.22,23.776884]
[1732283456273,2.5,255.35,255.23,20.0]
[1732283456449,2.5,255.3,255.23,20.0]
[1732283456763,33.16503695,255.32,255.14,23.93544774]
[1732283457063,2.5,255.26,255.14,20.0]
[1732283457360,2.5,255.27,255.14,20.0]
[1732283457952,30.66503695,255.3,255.14,20.0]
[1732283458157,2.5,255.27,255.14,20.0]
[1732283458354,2.5,255.28,255.14,20.0]
[1732283458562,2.5,255.25,255.14,20.0]
[1732283458757,2.5,255.23,255.13,12.8339]
[1732283459152,2.5,255.25,255.13,12.8339]
[1732283459357,2.5,255.24,255.13,12.8339]
[1732283459650,2.5,255.25,255.13,12.8339]
[1732283459851,2.5,255.25,255.14,20.0]
[1732283460246,2.5,255.2,255.13,12.8339]
[1732283460447,2.5,255.16,255.03,12.4739]
[1732283461351,2.5,255.17,255.03,12.4739]
[1732283461566,2.5,255.14,255.03,12.4739]
[1732283461768,2.5,255.11,255.03,12.4739]
[1732283461967,23.776884,255.13,255.03,12.4739]
[1732283462156,26.276884,255.13,255.03,12.4739]
[1732283462471,2.5,255.09,255.03,12.4739]
[1732283463371,1.5,255.1,255.03,12.4739]
[1732283463577,1.5,255.13,255.03,12.4739]
[1732283463780,1.5,255.16,255.04,20.0]
[1732283464072,1.5,255.2,255.04,20.0]
[1732283464377,1.5,255.15,255.04,20.0]
[1732283464853,1.5,255.13,255.04,20.0]
[1732283465363,1.5,255.11,255.04,20.0]
[1732283465764,1.5,255.12,255.04,20.0]
[1732283466271,1.5,255.13,255.04,20.0]
[1732283466861,1.5,255.16,255.04,20.0]
[1732283467173,18.92635476,255.3,255.04,20.0]
[1732283467174,1.5,255.11,255.04,20.0]
[1732283467576,1.5,255.09,255.04,20.0]
[1732283467777,1.5,255.09,255.03,12.4739]
[1732283467979,1.5,255.03,254.94,12.9806]
[1732283468157,1.5,255.05,254.94,12.9806]
[1732283468358,1.5,255.03,254.94,12.9806]
[1732283468869,1.5,255.02,254.94,12.9806]
[1732283469064,1.5,255.04,254.94,12.9806]
[1732283469380,1.5,255.01,254.95,20.0]
[1732283469780,1.5,255.09,254.95,20.0]
[1732283470078,1.5,255.13,254.95,20.0]
[1732283470279,1.5,255.11,254.95,20.0]
[1732283470482,1.5,255.13,254.97,20.0]
[1732283471181,1.0,255.05,254.84,19.37666555]
[1732283471362,1.0,255.05,254.83,12.4545]
[1732283471363,1.0,254.99,254.83,12.4545]
[1732283471689,1.0,255.03,254.84,0.58830881]
[1732283472283,23.776884,255.12,254.83,12.4545]
[1732283472284,1.0,254.97,254.83,12.4545]
[1732283472462,1.0,255.02,254.83,16.44988117]
[1732283472865,1.0,254.98,254.83,16.44988117]
[1732283473362,18.92635476,255.0,254.83,16.44988117]
[1732283473566,1.0,254.93,254.83,16.44988117]
[1732283473761,1.0,255.02,254.83,16.44988117]
[1732283474080,1.0,255.04,254.84,23.776884]
[1732283474577,1.0,255.07,254.88,23.776884]
[1732283474775,1.0,255.07,254.9,23.776884]
[1732283474973,1.0,255.02,254.91,20.0]
[1732283475563,1.0,254.97,254.84,20.0]
[1732283476675,1.0,255.0,254.84,20.0]
[1732283476888,1.0,255.0,254.87,23.776884]
[1732283477059,1.0,255.0,254.88,20.0]
[1732283477266,1.0,254.98,254.88,20.0]
[1732283477459,1.0,255.01,254.88,20.0]
[1732283477666,1.0,255.01,254.87,23.776884]
[1732283477667,1.0,254.96,254.84,20.0]
[1732283477968,1.0,254.94,254.83,12.4545]
[1732283478168,1.0,254.95,254.83,12.4545]
[1732283478684,1.0,254.9,254.83,12.4545]
[1732283478984,1.0,254.88,254.77,30.4209]
[1732283479187,1.0,255.0,254.83,4.0]
[1732283479481,1.0,255.12,254.92,12.7415]
[1732283479661,31.0792,255.17,254.92,12.7415]
[1732283479662,1.0,255.15,254.93,19.45148609]
[1732283479967,1.0,255.15,254.97,23.776884]
[1732283480164,1.0,255.14,254.99,23.776884]
[1732283480678,1.0,255.14,255.02,20.0]
[1732283480864,1.0,255.14,255.03,23.776884]
[1732283481181,1.0,255.11,255.04,20.0]
[1732283481385,1.0,255.07,255.04,20.0]
[1732283481586,1.0,255.04,254.93,43.776884]
[1732283481881,1.0,255.02,254.93,20.0]
[1732283482287,1.0,255.0,254.92,12.7415]
[1732283483577,41.43122667,255.16,254.9,23.776884]
[1732283483578,1.0,255.02,254.9,23.776884]
[1732283483878,1.0,255.04,254.96,23.776884]
[1732283484081,1.0,255.04,254.97,20.0]
[1732283485493,1.0,255.12,255.03,20.0]
[1732283485667,1.0,255.1,255.03,20.0]
[1732283486186,1.0,255.07,254.95,23.776884]
[1732283486381,33.25395941,255.24,254.95,23.776884]
[1732283486382,1.0,255.09,254.96,20.0]
[1732283486594,1.0,255.04,254.96,20.0]
[1732283486888,12.2366,255.25,254.96,20.0]
[1732283486889,1.0,255.02,254.96,20.0]
[1732283487064,1.0,255.02,254.89,4.09683886]
[1732283487259,1.0,255.02,254.84,1.5]
[1732283487865,1.0,255.02,254.86,1.5]
[1732283488070,0.5,255.02,254.87,23.776884]
[1732283488569,0.5,255.02,254.91,23.776884]
[1732283488764,0.5,255.02,254.93,23.776884]
[1732283488970,0.5,255.02,254.94,20.0]
[1732283489686,0.5,255.0,254.87,23.776884]
[1732283490075,0.5,255.0,254.9,20.0]
[1732283490293,23.776884,255.14,254.92,20.0]
[1732283490595,23.776884,255.14,254.84,0.58825272]
[1732283490596,22.5,255.21,254.96,20.0]
[1732283490772,20.0,255.21,254.97,23.776884]
[1732283491113,30.75395941,255.24,254.98,20.0]
[1732283491114,2.5,255.22,254.98,20.0]
[1732283491467,33.25395941,255.22,254.98,20.0]
[1732283491680,30.75395941,255.22,254.95,20.0]
[1732283491995,30.75395941,255.18,254.97,20.0]
[1732283492197,23.776884,255.16,254.97,20.0]
[1732283492371,23.776884,255.16,254.84,23.776884]
[1732283492700,20.0,255.15,254.86,23.776884]
[1732283492870,23.776884,255.14,254.87,7.25755023]
[1732283493077,23.776884,255.14,254.88,23.776884]
[1732283493269,20.0,255.15,254.88,23.776884]
[1732283493591,23.776884,255.14,254.9,20.0]
[1732283493894,23.776884,255.14,254.87,20.0]
[1732283494090,23.776884,255.14,254.9,20.0]
[1732283494496,20.0,255.15,254.9,20.0]
[1732283494697,23.776884,255.14,254.86,20.0]
[1732283495099,23.776884,255.14,254.89,23.776884]
[1732283495301,23.776884,255.14,254.9,20.0]
[1732283496300,23.776884,255.12,254.83,24.01229028]
[1732283496501,23.776884,255.08,254.83,4.01229028]
[1732283496675,23.776884,255.06,254.77,30.4209]
[1732283496880,20.0,255.02,254.7,12.369]
[1732283497079,54.53084341,255.01,254.7,12.369]
[1732283497273,23.776884,254.99,254.7,12.369]
[1732283498400,20.0,254.98,254.7,12.369]
[1732283498608,23.776884,254.97,254.7,12.369]
[1732283499120,54.53084341,254.95,254.7,12.369]
[1732283499301,23.776884,254.92,254.68,3.97748922]
[1732283499492,23.776884,254.92,254.63,19.7429645]
[1732283499798,23.776884,254.92,254.62,19.25325028]
[1732283500192,23.776884,254.92,254.64,19.75945044]
[1732283500395,23.776884,254.92,254.65,43.776884]
[1732283500714,23.776884,254.92,254.65,20.0]
[1732283501113,23.776884,254.85,254.61,16.61068469]
[1732283501285,23.776884,254.85,254.61,4.08328469]
[1732283501480,23.776884,254.85,254.53,12.1432]
[1732283501787,20.0,254.89,254.58,2.5]
[1732283502019,30.6804,254.9,254.6,24.24310263]
[1732283502185,30.6804,254.9,254.66,23.776884]
[1732283502508,30.6804,254.9,254.68,23.776884]
[1732283502694,30.6804,254.9,254.69,20.0]
[1732283502892,30.6804,254.9,254.74,23.776884]
[1732283503209,30.6804,254.9,254.77,20.0]
[1732283503909,13.1148,254.93,254.72,20.0]
[1732283504088,13.1148,254.93,254.69,20.0]
[1732283504296,23.776884,254.92,254.7,23.776884]
[1732283504913,13.1148,254.93,254.7,23.776884]
[1732283505117,13.1148,254.93,254.71,6.860328]
[1732283505288,31.8598,254.99,254.72,23.776884]
[1732283505595,31.8598,254.99,254.74,43.776884]
[1732283506716,30.75395941,254.96,254.64,24.03116473]
[1732283507009,31.8598,254.99,254.64,24.03116473]
[1732283507010,23.776884,254.97,254.64,26.53116473]
[1732283507516,23.776884,254.97,254.64,44.37927922]
[1732283508188,23.776884,254.97,254.65,23.776884]
[1732283508383,23.776884,254.97,254.64,44.37927922]
[1732283508384,23.776884,254.97,254.69,23.776884]
[1732283508591,23.776884,254.97,254.71,23.776884]
[1732283508814,23.776884,254.98,254.74,20.0]
[1732283508983,31.8598,254.99,254.77,23.776884]
[1732283509182,31.8598,254.99,254.8,20.0]
[1732283509393,31.8598,254.99,254.83,23.776884]
[1732283509597,31.8598,254.99,254.84,20.0]
[1732283510689,23.776884,254.98,254.84,20.0]
[1732283510890,31.8598,254.99,254.77,20.0]
[1732283511090,31.8598,254.99,254.79,20.0]
[1732283511291,31.8598,254.99,254.81,20.0]
[1732283511509,31.8598,254.99,254.83,20.0]
[1732283511718,31.8598,254.99,254.84,23.776884]
[1732283512216,31.8598,254.99,254.85,20.0]
[1732283512598,30.75395941,255.06,254.87,20.0]
[1732283513239,32.3323,255.08,254.77,20.0]
[1732283513240,30.75395941,255.02,254.77,20.0]
[1732283513519,30.75395941,255.0,254.81,20.0]
[1732283513722,23.776884,255.03,254.81,20.0]
[1732283513890,23.776884,255.01,254.81,20.0]
[1732283514091,23.776884,255.01,254.75,20.0]
[1732283514395,23.776884,255.01,254.69,44.13106539]
[1732283514801,54.57104598,255.01,254.69,44.13106539]
[1732283515114,18.95153686,255.0,254.7,23.776884]
[1732283515296,23.776884,255.01,254.7,30.637212]
[1732283515814,23.776884,255.01,254.74,23.776884]
[1732283516000,23.776884,255.01,254.77,20.0]
[1732283516315,18.95153686,255.04,254.8,23.776884]
[1732283516529,20.0,255.05,254.83,20.0]
[1732283516697,20.0,255.05,254.84,23.776884]
[1732283516898,18.95153686,255.06,254.85,20.0]
[1732283517615,23.776884,255.03,254.85,20.0]
[1732283517816,18.95153686,255.02,254.82,20.0]
[1732283518113,23.776884,255.01,254.82,20.0]
[1732283518417,23.776884,255.03,254.82,20.0]
[1732283518913,23.776884,255.01,254.82,20.0]
[1732283519721,23.776884,254.99,254.82,20.0]
[1732283521720,23.776884,255.01,254.82,20.0]
[1732283522227,18.95153686,255.06,254.82,20.0]
[1732283522402,18.95153686,255.04,254.82,20.0]
[1732283523021,18.95153686,255.06,254.84,20.0]
[1732283523208,32.3323,255.08,254.85,23.776884]
[1732283523421,32.3323,255.08,254.88,20.0]
[1732283524211,18.95153686,255.12,254.88,20.0]
[1732283524603,23.776884,255.11,254.88,20.0]
[1732283525025,18.95153686,255.14,254.9,20.0]
[1732283525330,18.95153686,255.22,254.96,20.0]
[1732283525531,2.83910672,255.21,255.0,20.0]
[1732283525824,12.5144,255.25,255.02,20.0]
[1732283526027,18.95153686,255.24,255.02,20.0]
[1732283526425,18.95153686,255.24,254.99,23.776884]
[1732283526734,18.95153686,255.18,254.95,20.0]
[1732283527522,18.95153686,255.14,254.94,12.7556]
[1732283527736,18.95153686,255.12,254.94,12.7556]
[1732283527917,23.776884,255.11,254.94,12.7556]
[1732283528253,23.776884,255.09,254.94,12.7556]
[1732283528433,23.776884,255.09,254.87,32.5024]
[1732283528434,23.776884,255.07,254.88,19.08189522]
[1732283528621,42.72842086,255.02,254.86,12.8565]
[1732283528801,18.95153686,254.97,254.78,12.8565]
[1732283529005,43.776884,254.96,254.78,12.8565]
[1732283529806,43.776884,254.92,254.78,12.8565]
[1732283530006,23.776884,254.9,254.72,19.6153158]
[1732283531034,23.776884,254.88,254.72,19.6153158]
[1732283531405,20.0,254.87,254.72,19.6153158]
[1732283531611,23.776884,254.86,254.72,19.6153158]
[1732283531933,23.776884,254.84,254.62,12.5827]
[1732283532437,23.776884,254.82,254.62,12.5827]
[1732283532738,23.776884,254.8,254.62,12.5827]
[1732283532937,18.95153686,254.79,254.62,12.5827]
[1732283533141,23.776884,254.78,254.62,12.5827]
[1732283533743,23.776884,254.8,254.62,12.5827]
[1732283533917,18.95153686,254.81,254.62,12.5827]
[1732283534235,23.776884,254.8,254.62,12.5827]
[1732283534420,38.95153686,254.79,254.55,32.38097622]
[1732283534621,23.776884,254.76,254.55,32.38097622]
[1732283535020,23.776884,254.76,254.56,6.860328]
[1732283535225,23.776884,254.76,254.55,32.38097622]
[1732283535624,23.776884,254.78,254.56,20.0]
[1732283536243,23.776884,254.78,254.56,26.860328]
[1732283536542,18.95153686,254.81,254.56,20.0]
[1732283536719,18.95153686,254.85,254.59,23.776884]
[1732283536926,18.95153686,254.85,254.6,20.0]
[1732283537534,18.95153686,254.83,254.62,20.0]
[1732283538255,15.3274,254.88,254.55,32.38097622]
[1732283538256,23.776884,254.8,254.58,20.0]
[1732283538546,23.776884,254.76,254.55,32.38097622]
[1732283538731,23.776884,254.78,254.55,32.38097622]
[1732283538918,20.0,254.77,254.55,32.38097622]
[1732283539121,43.776884,254.72,254.55,32.38097622]
[1732283539739,23.776884,254.74,254.55,32.38097622]
[1732283539945,20.0,254.73,254.55,32.38097622]
[1732283540131,23.776884,254.74,254.56,20.0]
[1732283540737,18.95153686,254.81,254.56,20.0]
[1732283541139,18.95153686,254.77,254.56,20.0]
[1732283541348,20.0,254.76,254.56,20.0]
[1732283541541,18.95153686,254.79,254.56,20.0]
[1732283541739,20.0,254.78,254.56,20.0]
[1732283541945,23.776884,254.77,254.56,20.0]
[1732283542333,23.776884,254.8,254.56,20.0]
[1732283542658,23.776884,254.78,254.56,20.0]
[1732283543046,23.776884,254.76,254.56,20.0]
[1732283543553,23.776884,254.73,254.56,20.0]
[1732283543936,18.95153686,254.72,254.56,20.0]
[1732283544132,23.776884,254.71,254.56,20.0]
[1732283544552,6.4233,254.89,254.56,20.0]
[1732283544744,167.8965,254.9,254.56,26.48110474]
[1732283544745,18.95153686,254.85,254.56,26.48110474]
[1732283544932,18.95153686,254.85,254.57,0.58894537]
[1732283545456,18.95153686,254.85,254.61,20.0]
[1732283545655,18.95153686,254.79,254.61,20.0]
[1732283545953,18.95153686,254.79,254.56,20.0]
[1732283546164,2.5,254.82,254.56,20.0]
[1732283546165,18.95153686,254.75,254.56,20.0]
[1732283546454,23.776884,254.74,254.56,20.0]
[1732283546751,18.95153686,254.71,254.55,32.38097622]
[1732283546942,23.776884,254.68,254.55,12.783]
[1732283547139,18.95153686,254.67,254.55,12.783]
[1732283547353,23.776884,254.66,254.55,12.783]
[1732283548036,18.95153686,254.73,254.55,12.783]
[1732283548236,18.95153686,254.71,254.55,12.783]
[1732283548659,23.776884,254.7,254.55,12.783]
[1732283549057,23.776884,254.72,254.55,12.783]
[1732283549255,18.95153686,254.77,254.56,20.0]
[1732283550536,23.776884,254.76,254.56,20.0]
[1732283550937,23.776884,254.78,254.56,20.0]
[1732283551549,23.776884,254.76,254.56,20.0]
[1732283551736,21.45153686,254.85,254.56,20.0]
[1732283551737,23.776884,254.74,254.56,20.0]
[1732283552061,2.5,254.82,254.56,20.0]
[1732283552062,23.776884,254.72,254.56,20.0]
[1732283552442,23.776884,254.74,254.56,20.0]
[1732283552937,18.95153686,254.73,254.56,20.0]
[1732283553141,23.776884,254.72,254.56,20.0]
[1732283553337,23.776884,254.7,254.55,12.783]
[1732283554654,18.95153686,254.69,254.55,12.783]
[1732283554838,23.776884,254.68,254.55,12.783]
[1732283555438,23.776884,254.7,254.55,12.783]
[1732283555959,23.776884,254.7,254.56,20.0]
[1732283557738,23.776884,254.72,254.56,20.0]
[1732283557938,18.95153686,254.75,254.56,20.0]
[1732283558338,134.8,254.78,254.56,20.0]
[1732283558339,18.95153686,254.77,254.56,20.0]
[1732283558553,18.95153686,254.79,254.56,20.0]
[1732283560042,23.776884,254.78,254.56,20.0]
[1732283560658,18.95153686,254.75,254.56,20.0]
[1732283560956,23.776884,254.72,254.56,20.0]
[1732283561363,18.95153686,254.7,254.55,12.783]
[1732283561665,23.776884,254.69,254.55,12.783]
[1732283562665,23.776884,254.69,254.56,20.0]
[1732283562844,23.776884,254.71,254.56,20.0]
[1732283563045,23.776884,254.73,254.56,20.0]
[1732283564446,23.776884,254.75,254.56,20.0]
[1732283564649,18.95153686,254.74,254.56,20.0]
[1732283565249,18.95153686,254.72,254.56,20.0]
[1732283566042,18.95153686,254.7,254.56,20.0]
[1732283566276,23.776884,254.69,254.56,20.0]
[1732283567063,23.776884,254.67,254.55,12.783]
[1732283567450,18.95153686,254.62,254.48,12.4686]
[1732283567770,23.776884,254.61,254.48,12.4686]